bitfinex-derivatives/quotes_SOLF0:USTF0_20250310
["timestamp","ask_amount","ask_price","bid_price","bid_amount"]
[1741601703138,31.70497531,127.85,127.76,2.1261]
[1741601703439,31.70497531,127.87,127.76,33.83107531]
[1741601703634,0.05232587,127.82,127.79,0.0549506]
[1741601703825,1.2991,127.88,127.79,0.0549506]
[1741601704032,192.0,127.9,127.78,31.70497531]
[1741601704334,31.70497531,127.91,127.78,31.70497531]
[1741601705137,0.04957539,127.86,127.83,0.05792607]
[1741601705436,0.04957539,127.86,127.82,7.8228]
[1741601705637,1.2991,127.92,127.83,0.05913181]
[1741601705843,7.8187,127.9,127.85,7.8213]
[1741601706139,1.3003,127.97,127.81,4.5478]
[1741601706342,1.3003,127.97,127.87,31.70497531]
[1741601706635,1.3003,127.97,127.88,4.6494]
[1741601706832,0.05613415,127.93,127.88,4.6494]
[1741601707034,0.05613415,127.93,127.91,0.05097795]
[1741601707338,82.33805729,128.0,127.91,0.05097795]
[1741601707743,41.5216061,128.04,127.91,31.70497531]
[1741601708044,31.70497531,128.01,127.89,31.70497531]
[1741601708542,31.70497531,128.01,127.89,39.52397531]
[1741601708737,0.05224641,127.96,127.94,0.05092448]
[1741601709137,7.8156,127.95,127.94,0.05092448]
[1741601709539,31.70497531,128.03,127.94,0.05092448]
[1741601709739,41.5216061,128.04,127.93,31.70497531]
[1741601710140,31.70497531,128.03,127.91,31.70497531]
[1741601710942,0.05722319,127.98,127.96,0.05628805]
[1741601711146,1.3003,128.06,127.96,0.05628805]
[1741601711343,1.3003,128.06,127.97,31.70497531]
[1741601711543,31.70497531,128.09,127.97,31.70497531]
[1741601712238,0.05739163,128.04,128.02,0.05539861]
[1741601712638,7.8105,128.03,128.02,0.05539861]
[1741601713340,0.05637108,128.04,128.02,0.05539861]
[1741601713547,145.15844344,128.13,128.02,0.05539861]
[1741601713739,146.45694344,128.13,128.02,0.05539861]
[1741601713945,146.45694344,128.13,128.01,31.70497531]
[1741601714246,33.00347531,128.13,128.01,31.70497531]
[1741601714440,7.8102,128.04,128.01,31.70497531]
[1741601714644,33.00347531,128.13,128.01,31.70497531]
[1741601714845,31.70497531,128.11,128.01,31.75772056]
[1741601715044,31.70497531,128.11,128.01,31.70497531]
[1741601715233,33.00347531,128.13,128.01,31.70497531]
[1741601715433,1.2985,128.13,128.03,31.70497531]
[1741601715642,7.8092,128.05,128.04,2.1528]
[1741601715837,1.2985,128.13,128.04,2.1528]
[1741601716243,31.70497531,128.16,128.05,33.82137531]
[1741601716542,7.8067,128.1,128.05,33.82137531]
[1741601716739,31.70497531,128.16,128.05,33.82137531]
[1741601716943,7.8068,128.09,128.05,33.82137531]
[1741601717134,31.70497531,128.16,128.05,33.82137531]
[1741601717333,0.04964211,128.08,128.06,0.05133886]
[1741601717539,31.70497531,128.16,128.05,33.82137531]
[1741601717941,7.807,128.09,128.05,33.82137531]
[1741601718346,31.70497531,128.16,128.05,33.82137531]
[1741601718750,0.02572901,128.12,128.09,0.05525598]
[1741601721449,7.83112901,128.12,128.09,0.05525598]
[1741601721742,1.7368,128.2,128.09,31.76023129]
[1741601721948,1.3425,128.21,128.11,7.8056]
[1741601722245,34.71297531,128.24,128.12,34.68787531]
[1741601722448,34.71297531,128.24,128.13,2.961]
[1741601723143,3.008,128.24,128.14,31.70497531]
[1741601723349,3.008,128.24,128.17,0.05975786]
[1741601723546,33.04747531,128.26,128.17,0.05975786]
[1741601723748,33.04747531,128.26,128.16,7.8022]
[1741601723950,1.3425,128.26,128.2,0.05043014]
[1741601724144,7.7999,128.21,128.2,0.05043014]
[1741601726947,7.8033,128.15,128.13,2.961]
[1741601727350,31.70497531,128.22,128.08,31.70497531]
[1741601727551,31.70497531,128.17,128.06,31.70497531]
[1741601727853,7.8063,128.1,128.06,31.70497531]
[1741601728150,0.05043014,128.13,128.1,0.05077468]
[1741601728452,0.05043014,128.13,128.1,0.05568198]
[1741601728844,7.8056,128.11,128.1,0.05568198]
[1741601729742,7.8056,128.11,128.1,8.198e-05]
[1741601730551,39.51057531,128.11,128.1,8.198e-05]
[1741601730754,31.70497531,128.09,127.97,31.70497531]
[1741601730946,31.70497531,128.07,127.97,31.70497531]
[1741601731141,7.8125,128.0,127.97,31.70497531]
[1741601731353,31.70497531,128.07,127.96,1.35926881]
[1741601731547,31.70497531,128.05,127.95,8.8334]
[1741601731752,7.8147,127.96,127.95,5.9828]
[1741601732051,31.75856026,128.03,127.91,2.8506]
[1741601732251,31.70497531,128.03,127.94,0.05489579]
[1741601732547,0.05723173,127.98,127.91,8.8334]
[1741601732753,0.05723173,127.98,127.91,10.19333278]
[1741601733149,0.05723173,127.98,127.91,8.8334]
[1741601734052,0.05723173,127.98,127.91,10.19343908]
[1741601734455,0.05723173,127.98,127.93,0.0569823]
[1741601736453,0.05723173,127.98,127.94,7.8156]
[1741601737051,0.05723173,127.98,127.94,59.24967727]
[1741601737251,0.05723173,127.98,127.94,51.43407727]
[1741601737453,7.8105,128.03,127.96,51.43407727]
[1741601737850,7.8105,128.03,127.96,59.24847727]
[1741601738056,7.81,128.04,127.96,51.43407727]
[1741601738251,52.80147727,128.08,127.96,51.43407727]
[1741601738457,52.80147727,128.08,127.96,59.24877727]
[1741601738656,0.04888039,128.03,128.01,0.05638117]
[1741601738959,52.80147727,128.08,128.01,0.05638117]
[1741601739148,7.85968039,128.03,128.01,0.05638117]
[1741601739350,7.8108,128.03,128.01,0.05638117]
[1741601739558,7.85968039,128.03,128.01,0.05638117]
[1741601739752,0.04888039,128.03,128.01,0.05638117]
[1741601740658,7.8111,128.02,128.01,0.05638117]
[1741601742561,0.04888039,128.03,127.98,7.8134]
[1741601742764,51.43407727,128.06,127.94,51.43407727]
[1741601742964,7.8114,128.02,127.94,51.43407727]
[1741601743360,51.43407727,128.06,127.94,51.43407727]
[1741601743560,0.05836603,127.99,127.97,0.05958352]
[1741601743761,51.43407727,128.06,127.97,7.8141]
[1741601743958,0.05370267,127.99,127.97,7.87280783]
[1741601744158,51.43407727,128.06,127.94,51.43407727]
[1741601744360,0.05246739,127.99,127.97,0.05641714]
[1741601744666,51.43407727,128.06,127.95,7.8151]
[1741601744865,0.05444582,127.99,127.97,0.05734379]
[1741601745063,51.43407727,128.03,127.94,7.8157]
[1741601745258,0.05289793,127.99,127.97,0.05245876]
[1741601745463,7.8135,127.98,127.97,0.05245876]
[1741601745661,0.05289793,127.99,127.92,7.8169]
[1741601745854,51.43407727,128.01,127.92,7.8169]
[1741601746061,51.43407727,128.01,127.91,8.8334]
[1741601746263,7.8146,127.97,127.93,7.8165]
[1741601746561,2.8837,128.02,127.91,60.26747727]
[1741601746766,7.8126,128.0,127.96,7.8144]
[1741601747163,0.05990351,127.99,127.96,7.8144]
[1741601747461,0.05990351,127.99,127.98,7.8135]
[1741601747861,51.43407727,128.05,127.93,51.43407727]
[1741601748066,51.43407727,128.05,127.97,0.05248759]
[1741601748067,0.05913153,128.0,127.97,0.05248759]
[1741601748272,0.05913153,128.0,127.93,51.43407727]
[1741601748461,7.87193153,128.0,127.97,0.05885067]
[1741601748871,0.05913153,128.0,127.97,0.05885067]
[1741601749571,0.05913153,128.0,127.97,3.11485067]
[1741601749963,0.05913153,128.0,127.97,0.05885067]
[1741601750871,7.87193153,128.0,127.97,0.05885067]
[1741601751066,0.05913153,128.0,127.97,0.05885067]
[1741601751472,7.8135,127.98,127.97,0.05885067]
[1741601751669,0.05913153,128.0,127.97,0.05885067]
[1741601751969,0.05913153,128.0,127.97,7.87295067]
[1741601752766,0.05913153,128.0,127.98,7.8134]
[1741601752967,0.05913153,128.0,127.97,0.05885067]
[1741601754569,0.05913153,128.0,127.98,7.8135]
[1741601754868,0.05913153,128.0,127.97,0.05885067]
[1741601755266,0.05913153,128.0,127.97,7.87265067]
[1741601756067,7.87173153,128.0,127.97,0.05885067]
[1741601756471,0.05913153,128.0,127.97,0.05885067]
[1741601756671,7.87163153,128.0,127.97,7.87265067]
[1741601757774,0.05913153,128.0,127.97,7.87265067]
[1741601757971,0.05913153,128.0,127.98,7.8135]
[1741601758172,0.05913153,128.0,127.97,0.05885067]
[1741601758373,7.8097,128.05,127.97,31.69432631]
[1741601758675,1.2986,128.09,128.01,7.8113]
[1741601759270,1.2986,128.09,127.99,31.63547564]
[1741601759474,0.05199464,128.06,128.04,0.05026256]
[1741601759671,7.8092,128.05,128.04,0.05026256]
[1741601760573,7.8129,127.99,127.95,3.056]
[1741601760770,34.46257564,128.05,127.95,3.056]
[1741601760972,31.63547564,128.03,127.93,7.26373432]
[1741601761273,31.63547564,127.99,127.93,2.9249]
[1741601761576,31.63547564,127.99,127.88,40.43847564]
[1741601761764,0.05842637,127.97,127.95,0.05549394]
[1741601761964,7.8147,127.96,127.91,7.8174]
[1741601762170,0.05842637,127.97,127.9,31.63547564]
[1741601762469,31.63547564,128.03,127.95,7.87356438]
[1741601762677,1.6048,128.04,127.95,7.815]
[1741601762875,0.06021485,128.0,127.98,0.05739544]
[1741601763071,7.8129,127.99,127.98,0.05739544]
[1741601763266,0.05321396,128.0,127.92,31.63547564]
[1741601763575,7.8135,127.98,127.97,0.05163719]
[1741601763975,0.05208489,127.99,127.9,31.63547564]
[1741601764171,0.05208489,127.99,127.89,1.3598265]
[1741601764474,0.05028818,127.95,127.93,0.0567793]
[1741601764668,0.05028818,127.95,127.89,1.3598265]
[1741601764873,0.05683335,127.93,127.91,0.05292167]
[1741601765173,31.63547564,127.99,127.89,1.3598265]
[1741601765381,0.04936501,127.93,127.91,0.05829246]
[1741601765677,7.8184,127.9,127.88,8.803]
[1741601765876,31.63547564,127.97,127.91,0.0500621]
[1741601765877,0.0534534,127.93,127.91,0.0500621]
[1741601766079,0.0534534,127.93,127.85,3.0158]
[1741601766378,31.63547564,127.93,127.84,88.49769931]
[1741601766967,2.9642,127.96,127.84,88.49769931]
[1741601767166,7.8181,127.91,127.86,7.8205]
[1741601767475,0.06000058,127.9,127.87,0.05717342]
[1741601767675,31.63547564,127.94,127.84,88.49769931]
[1741601767982,31.63547564,127.89,127.84,85.50459931]
[1741601769073,33.24377564,127.89,127.84,85.50459931]
[1741601769388,33.24377564,127.89,127.78,5.7514]
[1741601769767,7.8243,127.81,127.77,128.51371823]
[1741601770082,31.63547564,127.86,127.77,128.51371823]
[1741601770375,7.8234,127.82,127.77,136.33991823]
[1741601770582,7.8234,127.82,127.8,0.05596831]
[1741601770779,0.0578074,127.83,127.8,0.05596831]
[1741601771369,0.0578074,127.83,127.81,7.8235]
[1741601772478,0.0578074,127.83,127.8,7.88026831]
[1741601772982,0.0578074,127.83,127.8,0.05596831]
[1741601773782,7.8239,127.81,127.8,0.05596831]
[1741601775482,7.8239,127.81,127.8,6.831e-05]
[1741601775884,7.8276,127.75,127.74,3.0269]
[1741601776078,31.63547564,127.78,127.68,7.8316]
[1741601776279,31.63547564,127.78,127.67,8.7848]
[1741601776581,31.63547564,127.8,127.67,8.7848]
[1741601776582,31.63547564,127.76,127.67,8.7848]
[1741601776884,7.8292,127.73,127.67,8.7848]
[1741601777086,31.63547564,127.8,127.68,31.63547564]
[1741601777293,31.63547564,127.84,127.72,31.63547564]
[1741601777481,7.8251,127.8,127.73,2.9212]
[1741601777785,31.63547564,127.84,127.75,7.8272]
[1741601777986,7.8252,127.79,127.74,5.8636]
[1741601778387,0.05841554,127.78,127.75,0.05609079]
[1741601778881,31.63547564,127.84,127.75,0.05063801]
[1741601779087,0.05426911,127.78,127.74,5.8636]
[1741601779383,31.63547564,127.84,127.78,5.483e-05]
[1741601779584,31.63547564,127.82,127.74,5.8636]
[1741601780285,4.2338,127.83,127.74,5.8636]
[1741601780590,0.05431517,127.79,127.77,0.05399057]
[1741601780781,7.8257,127.78,127.77,0.05399057]
[1741601781586,0.05431517,127.79,127.77,0.05399057]
[1741601782185,7.8245,127.81,127.77,0.05399057]
[1741601782391,36.01107564,127.88,127.76,31.63547564]
[1741601782586,7.823,127.83,127.79,7.8251]
[1741601782786,36.01107564,127.88,127.78,31.63547564]
[1741601782987,36.01107564,127.88,127.79,2.8637]
[1741601783491,31.63547564,127.86,127.74,37.49907564]
[1741601783693,31.63547564,127.83,127.82,8.743e-05]
[1741601783886,7.8266,127.77,127.75,2.8637]
[1741601784283,31.63547564,127.83,127.75,2.8637]
[1741601784493,31.63547564,127.86,127.75,2.8637]
[1741601784894,0.05073402,127.82,127.79,0.05031159]
[1741601785194,31.63547564,127.8,127.74,2.9295]
[1741601785593,7.8276,127.75,127.74,2.9295]
[1741601787291,7.87947211,127.76,127.74,2.9295]
[1741601787885,7.8276,127.75,127.74,2.9295]
[1741601788089,0.05237211,127.76,127.74,2.9295]
[1741601788490,7.8276,127.75,127.74,2.9295]
[1741601788690,0.05237211,127.76,127.73,0.05607889]
[1741601789290,0.05237211,127.76,127.73,31.69155453]
[1741601789499,2.9444,127.85,127.73,35.61155453]
[1741601789693,2.9444,127.85,127.76,7.8264]
[1741601789891,31.63547564,127.86,127.77,6.1236]
[1741601790188,6.3742,127.88,127.77,6.1236]
[1741601790389,15.6333,127.93,127.79,31.63547564]
[1741601790588,22.0138,127.93,127.79,31.63547564]
[1741601790790,0.05954058,127.84,127.81,0.05370537]
[1741601790992,22.0138,127.93,127.79,31.63547564]
[1741601791196,7.8199,127.88,127.82,31.63547564]
[1741601791396,31.63547564,127.96,127.85,31.63547564]
[1741601791599,31.63547564,127.96,127.86,6.0719]
[1741601792001,31.63547564,127.94,127.86,6.0719]
[1741601792294,51.50331197,127.95,127.86,6.0719]
[1741601792497,0.05752333,127.92,127.9,0.05853388]
[1741601792698,7.8178,127.91,127.9,0.05853388]
[1741601793089,0.05752333,127.92,127.9,0.05853388]
[1741601793892,7.87512333,127.92,127.9,0.05853388]
[1741601794289,0.05752333,127.92,127.9,0.05853388]
[1741601794494,7.8178,127.91,127.9,0.05853388]
[1741601795093,0.05752333,127.92,127.9,0.05853388]
[1741601796205,7.87472333,127.92,127.9,0.05853388]
[1741601796405,0.05752333,127.92,127.9,0.05853388]
[1741601796606,7.8178,127.91,127.9,0.05853388]
[1741601801108,0.05752333,127.92,127.9,0.05853388]
[1741601802200,7.8178,127.91,127.9,0.05853388]
[1741601804711,7.8178,127.91,127.9,3.388e-05]
[1741601805507,59.32111197,127.91,127.9,3.388e-05]
[1741601806610,63.22111197,127.91,127.82,3.023]
[1741601806809,51.50331197,127.88,127.82,3.023]
[1741601807112,2.8405,127.9,127.82,3.023]
[1741601807308,7.8224,127.84,127.82,3.023]
[1741601807710,7.8766257,127.84,127.82,3.07652704]
[1741601807910,7.8227,127.83,127.82,3.07652704]
[1741601808716,0.0542257,127.84,127.82,3.07652704]
[1741601810815,7.8227,127.83,127.82,3.07652704]
[1741601812027,0.0542257,127.84,127.82,3.07652704]
[1741601812326,51.50331197,127.92,127.82,3.07652704]
[1741601812526,7.8204,127.87,127.82,3.07652704]
[1741601812728,51.50331197,127.92,127.82,3.023]
[1741601813120,7.8217,127.85,127.82,3.023]
[1741601813320,0.05094199,127.88,127.86,0.05089586]
[1741601813623,7.8218,127.85,127.82,3.023]
[1741601814128,7.8218,127.85,127.82,3.0735494]
[1741601814333,0.05136717,127.85,127.83,7.8225]
[1741601814516,31.70229776,127.92,127.83,7.8225]
[1741601814918,7.8215,127.85,127.82,10.846]
[1741601815128,31.70229776,127.9,127.82,3.023]
[1741601815324,7.8227,127.83,127.82,3.023]
[1741601816334,0.05790431,127.84,127.82,3.023]
[1741601816520,7.8218,127.85,127.82,10.8462]
[1741601816724,7.8218,127.85,127.82,3.023]
[1741601817029,31.70229776,127.9,127.82,3.023]
[1741601817228,31.70229776,127.93,127.82,3.023]
[1741601817724,0.05089574,127.89,127.86,0.05583041]
[1741601817930,7.8202,127.87,127.86,0.05583041]
[1741601820828,0.05089574,127.89,127.86,0.05583041]
[1741601821230,7.8202,127.87,127.86,0.05583041]
[1741601821629,0.05089574,127.89,127.86,0.05583041]
[1741601822418,0.05089574,127.89,127.87,7.8199]
[1741601822630,0.05089574,127.89,127.86,0.05583041]
[1741601823130,4.68,127.97,127.86,31.75812817]
[1741601823430,4.68,127.97,127.87,6.0384]
[1741601824024,7.8178,127.91,127.88,7.8193]
[1741601824429,0.05304901,127.93,127.88,7.8193]
[1741601824630,7.8176,127.92,127.89,7.8187]
[1741601824830,0.05304901,127.93,127.88,0.05427728]
[1741601825026,7.8143,127.97,127.89,31.70229776]
[1741601825236,3.053,128.01,127.92,31.70229776]
[1741601825433,3.053,128.01,127.93,3.0233]
[1741601825630,7.8138,127.98,127.94,7.8159]
[1741601826034,7.8138,127.98,127.94,2.917]
[1741601826232,0.05229435,127.97,127.95,0.05317636]
[1741601826432,31.70229776,127.96,127.84,31.70229776]
[1741601826631,31.70229776,127.96,127.87,2.917]
[1741601826828,31.70229776,127.94,127.87,2.917]
[1741601827236,7.817,127.93,127.87,2.917]
[1741601827535,31.70229776,127.98,127.87,34.61929776]
[1741601827738,7.817,127.93,127.87,10.7369]
[1741601827930,0.05926898,127.91,127.89,0.05671262]
[1741601828233,31.70229776,128.0,127.89,0.05671262]
[1741601828234,31.70229776,128.0,127.89,31.75901038]
[1741601828436,5.0371,128.01,127.89,31.75901038]
[1741601828635,31.70229776,128.04,127.94,31.70229776]
[1741601828830,315.98692452,128.12,127.94,31.70229776]
[1741601828831,7.8123,128.0,127.95,13.7869]
[1741601829133,34.76719776,128.06,127.95,13.7869]
[1741601829339,0.05838497,127.99,127.96,0.05346133]
[1741601829540,34.76719776,128.06,127.95,5.9718]
[1741601829742,0.05049873,127.99,127.96,0.05358922]
[1741601830040,34.76719776,128.06,127.95,5.9718]
[1741601830240,0.05349488,127.99,127.96,0.06004674]
[1741601830539,31.70229776,128.03,127.95,5.9718]
[1741601830838,0.04948347,127.99,127.96,0.05861121]
[1741601831037,7.8141,127.97,127.96,0.05861121]
[1741601831239,3.0649,128.06,127.96,0.05861121]
[1741601831542,43.2512061,128.09,127.98,31.70229776]
[1741601832227,34.74369776,128.11,128.0,31.70229776]
[1741601832427,41.5216061,128.13,128.03,31.70229776]
[1741601832745,31.70229776,128.12,128.04,5.8577]
[1741601833132,31.70229776,128.06,127.95,223.70229776]
[1741601833334,31.70229776,128.1,127.97,31.70229776]
[1741601833635,7.8093,128.05,127.98,1.39948158]
[1741601833837,31.70229776,128.12,128.02,0.04981796]
[1741601834137,7.8082,128.07,128.02,31.70229776]
[1741601834337,31.70229776,128.12,128.06,0.04966101]
[1741601834538,31.70229776,128.12,128.03,3.0256]
[1741601834832,31.70229776,128.12,128.0,31.70229776]
[1741601835037,31.70229776,128.12,128.01,3.0256]
[1741601835440,31.70229776,128.12,128.02,3.0444]
[1741601835833,36.52429776,128.16,128.03,31.70229776]
[1741601836029,36.52429776,128.16,128.06,31.75555131]
[1741601836030,4.822,128.16,128.06,31.75555131]
[1741601836229,7.8056,128.11,128.06,39.51079776]
[1741601836435,3.0414,128.16,128.06,31.70229776]
[1741601836733,31.70229776,128.15,128.04,31.70229776]
[1741601837238,31.70229776,128.15,128.08,0.05752534]
[1741601837434,3.0414,128.16,128.08,0.05752534]
[1741601837633,3.0414,128.16,128.04,31.70229776]
[1741601837832,3.0414,128.16,128.11,0.05084964]
[1741601838038,7.805,128.12,128.11,0.05084964]
[1741601839134,3.9,128.12,128.03,2.9521]
[1741601839341,31.70229776,128.09,128.02,3.0444]
[1741601839536,31.70229776,128.09,128.02,6.0467]
[1741601839929,34.74369776,128.16,128.02,6.0467]
[1741601840237,34.74369776,128.16,128.03,31.70229776]
[1741601840435,0.05084964,128.1,128.08,0.05915566]
[1741601840739,7.8087,128.06,128.03,31.70229776]
[1741601840937,0.05084964,128.1,128.08,0.0588355]
[1741601841135,3.0414,128.16,128.03,31.70229776]
[1741601841338,0.04966564,128.1,128.08,31.75591625]
[1741601841648,31.70229776,128.18,128.09,9.1571]
[1741601841844,7.8062,128.1,128.09,9.1571]
[1741601842139,31.70229776,128.18,128.09,9.1571]
[1741601842339,31.70229776,128.14,128.03,31.70229776]
[1741601842534,31.70229776,128.14,128.12,0.05988064]
[1741601842734,7.8088,128.06,128.03,40.61269776]
[1741601843140,31.70229776,128.14,128.03,40.61269776]
[1741601843341,7.8096,128.05,128.03,40.61269776]
[1741601843543,31.70229776,128.14,128.03,40.61269776]
[1741601843935,0.06009605,128.1,128.07,0.05918927]
[1741601844140,0.06009605,128.1,128.03,3.0304]
[1741601844342,0.06009605,128.1,128.07,0.0532686]
[1741601844845,7.8075,128.08,128.07,0.0532686]
[1741601846250,0.06009605,128.1,128.07,0.0532686]
[1741601846445,1.7955,128.18,128.07,0.0532686]
[1741601846744,7.8059,128.11,128.07,6.0804]
[1741601846952,31.70229776,128.16,128.07,6.0804]
[1741601847646,31.70229776,128.16,128.1,0.05696742]
[1741601847948,7.8056,128.11,128.1,0.05696742]
[1741601848650,7.8051,128.12,128.1,0.05696742]
[1741601848849,7.8051,128.12,128.07,6.0804]
[1741601849047,7.8051,128.12,128.1,0.05079559]
[1741601849249,2.8463,128.19,128.1,0.05079559]
[1741601849445,2.8463,128.19,128.1,3.0927]
[1741601849754,2.8463,128.19,128.13,0.05356359]
[1741601849755,7.8035,128.15,128.13,0.05356359]
[1741601849953,2.8463,128.19,128.13,0.05356359]
[1741601850464,2.973,128.23,128.13,0.05356359]
[1741601850759,2.973,128.23,128.13,3.0843]
[1741601850959,2.973,128.23,128.16,0.05324955]
[1741601851259,7.8021,128.17,128.16,0.05324955]
[1741601851954,7.8016,128.18,128.16,0.05324955]
[1741601852257,1.7955,128.24,128.16,0.05324955]
[1741601852558,7.8019,128.17,128.14,2.9201]
[1741601852757,1.7955,128.24,128.14,2.9201]
[1741601852949,1.7955,128.24,128.14,2.9770831]
[1741601853148,1.7955,128.24,128.14,2.9201]
[1741601853459,33.66829776,128.25,128.18,0.05381753]
[1741601853755,7.8007,128.19,128.18,0.05381753]
[1741601856755,1.7925,128.22,128.09,7.8065]
[1741601856963,31.70229776,128.17,128.08,2.9638]
[1741601857257,2.8647,128.16,128.08,2.9638]
[1741601857464,4.6572,128.16,128.05,5.7826]
[1741601857762,31.70229776,128.14,128.06,2.9972]
[1741601857959,7.808,128.07,128.06,2.9972]
[1741601858557,4.6572,128.16,128.05,0.05348673]
[1741601858558,7.8086,128.06,128.05,0.05348673]
[1741601858959,31.70229776,128.11,128.04,0.06025249]
[1741601859163,0.05478612,128.07,128.04,0.06025249]
[1741601859365,36.35949776,128.16,128.0,1.35889726]
[1741601859366,36.35949776,128.16,128.03,31.70229776]
[1741601859564,36.35949776,128.16,128.06,0.05946836]
[1741601859759,7.8078,128.08,128.06,6.08236836]
[1741601859961,36.35949776,128.16,128.06,6.0229]
[1741601860267,4.6572,128.16,128.06,57.32988526]
[1741601860454,4.6572,128.16,128.07,2.8418]
[1741601860654,51.30698526,128.15,128.1,0.05424871]
[1741601861567,7.8056,128.11,128.1,0.05424871]
[1741601861761,7.8056,128.11,128.03,59.11718526]
[1741601861762,51.30698526,128.15,128.03,61.93698526]
[1741601861961,7.808,128.08,128.03,61.93698526]
[1741601862165,7.808,128.08,128.03,54.12678526]
[1741601862366,7.808,128.08,128.04,7.8098]
[1741601862566,7.808,128.08,128.03,54.12678526]
[1741601862766,0.05424871,128.07,128.05,0.05385345]
[1741601863462,7.8086,128.06,128.05,0.05385345]
[1741601863666,0.05424871,128.07,127.99,2.9085]
[1741601864065,7.8115,128.02,127.99,2.9085]
[1741601864266,3.0663,128.08,127.99,2.9085]
[1741601864473,3.0663,128.08,128.0,2.9585]
[1741601864660,7.8108,128.03,128.0,10.7707]
[1741601864865,0.04968628,128.05,128.03,0.05547786]
[1741601865377,7.8123,128.0,127.99,2.9085]
[1741601865570,0.04968628,128.05,127.97,1.3593219]
[1741601865766,51.30698526,128.05,127.98,0.05028526]
[1741601865967,0.05518655,128.01,127.98,0.05028526]
[1741601867077,7.8129,127.99,127.98,0.05028526]
[1741601867874,7.8125,128.0,127.98,0.05028526]
[1741601868774,0.05518655,128.01,127.98,0.05028526]
[1741601869573,7.8129,127.99,127.98,0.05028526]
[1741601869873,0.05518655,128.01,127.98,0.05028526]
[1741601870966,7.8128,128.0,127.98,0.05028526]
[1741601871173,0.05518655,128.01,127.98,0.05028526]
[1741601871669,0.05518655,128.01,127.93,8.7446]
[1741601871864,3.0364,128.01,127.93,8.7446]
[1741601872075,3.0364,128.01,127.93,2.9085]
[1741601872481,3.0364,128.01,127.93,10.725]
[1741601872680,7.8146,127.97,127.93,2.9085]
[1741601872881,0.0559932,127.98,127.96,0.05840934]
[1741601873677,7.8697932,127.98,127.96,0.05840934]
[1741601874078,0.0559932,127.98,127.96,0.05840934]
[1741601874278,7.8116,128.02,127.96,0.05840934]
[1741601874481,1.7392,128.06,127.98,51.30698526]
[1741601874888,3.048,128.08,127.98,51.30698526]
[1741601875089,3.048,128.08,128.0,7.812]
[1741601875383,0.05824841,128.05,128.03,0.05041229]
[1741601875777,7.8099,128.04,128.03,0.05041229]
[1741601877485,7.8131,127.99,127.96,5.8493]
[1741601877693,51.30698526,128.06,127.96,5.8493]
[1741601878190,51.30698526,128.06,127.96,13.6638]
[1741601878577,7.8117,128.01,128.0,7.851e-05]
[1741601879183,0.04932005,128.02,128.0,7.851e-05]
[1741601879889,7.8117,128.01,128.0,7.851e-05]
[1741601880891,11.7117,128.01,128.0,7.851e-05]
[1741601881081,60.09408526,128.01,127.9,3.0528]
[1741601881285,51.30698526,127.98,127.9,3.0528]
[1741601881481,51.30698526,127.98,127.89,2.8791]
[1741601881786,51.30698526,127.99,127.89,2.8791]
[1741601881985,51.30698526,127.96,127.85,1.36019856]
[1741601882291,31.69579728,127.94,127.82,131.56010314]
[1741601882493,223.69579728,127.98,127.89,0.05945952]
[1741601882689,7.87315699,127.9,127.84,31.69579728]
[1741601882994,0.05906292,127.88,127.84,31.69579728]
[1741601883291,0.05906292,127.88,127.86,0.04956134]
[1741601883489,0.05906292,127.88,127.87,7.8202]
[1741601883688,36.58289728,128.01,127.87,35.61579728]
[1741601883887,6.5767,128.01,127.9,31.69579728]
[1741601884090,6.5767,128.01,127.91,2.8788]
[1741601884288,58.02290088,128.01,127.91,2.8788]
[1741601884494,7.8144,127.97,127.92,7.817]
[1741601884893,0.05226046,127.96,127.93,0.05291959]
[1741601885088,51.44620088,128.04,127.94,7.8159]
[1741601885289,54.55600088,128.04,127.92,51.44620088]
[1741601885687,7.8139,127.98,127.93,7.8162]
[1741601885887,7.8139,127.98,127.92,51.44620088]
[1741601886089,54.55600088,128.04,127.92,51.44620088]
[1741601886491,0.05085181,127.96,127.94,0.04974006]
[1741601886691,54.55600088,128.04,127.91,2.8788]
[1741601886991,7.8157,127.95,127.94,0.05154843]
[1741601887496,0.05398794,127.96,127.93,0.05395982]
[1741601887997,7.8188,127.9,127.88,2.9689]
[1741601888192,2.8449,127.97,127.88,2.9689]
[1741601888588,51.44620088,127.96,127.87,2.9904]
[1741601888993,7.819,127.89,127.87,2.9904]
[1741601889195,0.05941537,127.93,127.87,2.9904]
[1741601889493,0.05088845,127.91,127.83,7.8223]